bitfinex-derivatives/quotes_BTCF0:USTF0_20250510
["timestamp","ask_amount","ask_price","bid_price","bid_amount"]
[1746888351546,9e-08,103640.0,103630.0,1.6859253]
[1746888351841,9e-08,103640.0,103630.0,3.35222839]
[1746888352041,9e-08,103640.0,103630.0,3.34872088]
[1746888352241,0.16600009,103640.0,103630.0,3.34872088]
[1746888353046,0.26413401,103640.0,103630.0,3.44872088]
[1746888353344,0.26413401,103640.0,103630.0,3.44972088]
[1746888354145,0.26413401,103640.0,103630.0,3.28341779]
[1746888354346,0.26413401,103640.0,103630.0,3.44972088]
[1746888357336,0.166,103640.0,103630.0,3.44972088]
[1746888357747,0.1294954,103640.0,103630.0,3.44972088]
[1746888357946,1e-07,103650.0,103640.0,0.1929467]
[1746888358145,0.098,103660.0,103640.0,1.44114979]
[1746888358442,0.0608613,103660.0,103650.0,0.72003119]
[1746888358642,0.0332,103660.0,103650.0,1.2563281]
[1746888359039,0.0332,103660.0,103650.0,1.51810972]
[1746888359231,0.1992,103660.0,103650.0,1.35180663]
[1746888359438,0.1992,103660.0,103650.0,1.51810972]
[1746888359638,0.1992,103660.0,103650.0,1.52756265]
[1746888360034,0.1992,103660.0,103650.0,1.36125956]
[1746888360035,0.166,103660.0,103650.0,1.36125956]
[1746888360241,0.1318064,103660.0,103650.0,1.69386574]
[1746888360843,0.0829743,103660.0,103650.0,1.69386574]
[1746888361045,0.0829743,103660.0,103650.0,1.37553515]
[1746888361249,0.0365,103680.0,103670.0,0.1898908]
[1746888361443,0.1021,103680.0,103670.0,1.3292308]
[1746888361644,0.1021,103680.0,103670.0,1.3262308]
[1746888361943,0.1021,103680.0,103670.0,1.42168606]
[1746888362248,0.2681,103680.0,103670.0,1.42168606]
[1746888362444,0.2721,103680.0,103670.0,0.70008606]
[1746888362646,0.63127529,103680.0,103670.0,0.60498606]
[1746888363044,0.99207529,103680.0,103670.0,0.60498606]
[1746888363247,0.8257722,103680.0,103670.0,0.60498606]
[1746888363445,0.99207529,103680.0,103670.0,0.63548606]
[1746888363750,0.99507529,103680.0,103670.0,0.63548606]
[1746888363939,0.8287722,103680.0,103670.0,0.63548606]
[1746888364440,0.8287722,103680.0,103670.0,0.60498606]
[1746888364641,0.99507529,103680.0,103670.0,0.60498606]
[1746888364947,0.99507529,103680.0,103670.0,0.43234606]
[1746888365146,0.99507529,103680.0,103670.0,0.3358908]
[1746888365446,0.73073129,103680.0,103670.0,0.3358908]
[1746888365648,0.99507529,103680.0,103670.0,0.3358908]
[1746888367951,0.8287722,103680.0,103670.0,0.3358908]
[1746888368454,0.99507529,103680.0,103670.0,0.3358908]
[1746888368849,0.8287722,103680.0,103670.0,0.3358908]
[1746888369151,0.4679722,103680.0,103670.0,0.6966908]
[1746888369348,0.2751,103680.0,103670.0,0.82484606]
[1746888369552,0.2751,103680.0,103670.0,0.88824606]
[1746888370455,0.2423,103680.0,103670.0,0.88824606]
[1746888370647,0.4657722,103680.0,103670.0,0.88824606]
[1746888371650,0.4587722,103680.0,103670.0,0.88824606]
[1746888372057,0.4587722,103680.0,103670.0,0.52744606]
[1746888372552,0.4587722,103680.0,103670.0,0.69374915]
[1746888372856,0.4587722,103680.0,103670.0,0.88824606]
[1746888374153,0.62507529,103680.0,103670.0,0.85604606]
[1746888374352,0.62507529,103680.0,103670.0,0.82484606]
[1746888374551,0.62507529,103680.0,103670.0,0.46404606]
[1746888374749,0.4587722,103680.0,103670.0,0.46404606]
[1746888376151,0.4587722,103680.0,103670.0,0.49494606]
[1746888377358,0.62507529,103680.0,103670.0,0.49494606]
[1746888377657,0.4587722,103680.0,103670.0,0.49494606]
[1746888378359,1.15217838,103680.0,103670.0,0.15]
[1746888378556,0.98587529,103680.0,103670.0,0.3428908]
[1746888381052,0.98587529,103680.0,103670.0,0.1928908]
[1746888381661,0.98587529,103680.0,103670.0,0.2252908]
[1746888383560,0.1928908,103670.0,103660.0,0.2411246]
[1746888383756,0.6189908,103670.0,103660.0,0.3135246]
[1746888383951,0.78529389,103670.0,103660.0,0.44137986]
[1746888384158,0.95129389,103670.0,103660.0,0.44137986]
[1746888384762,0.95129389,103670.0,103660.0,0.44337986]
[1746888385163,0.95129389,103670.0,103660.0,0.44537986]
[1746888385554,0.7849908,103670.0,103660.0,0.44537986]
[1746888389054,0.95129389,103670.0,103660.0,0.44537986]
[1746888389260,0.7849908,103670.0,103660.0,0.44537986]
[1746888389866,0.9076862,103670.0,103660.0,0.44537986]
[1746888395068,1.07398929,103670.0,103660.0,0.39715636]
[1746888395266,1.07398929,103670.0,103660.0,0.3007011]
[1746888395866,1.10488929,103670.0,103660.0,0.0764]
[1746888396166,1.78638929,103670.0,103660.0,0.0764]
[1746888396372,2.03638929,103670.0,103660.0,0.004]
[1746888396669,2.1328533,103670.0,103660.0,0.004]
[1746888396870,2.14765531,103670.0,103660.0,0.004]
[1746888397064,0.1929095,103660.0,103650.0,0.0319]
[1746888397273,0.1929281,103650.0,103640.0,0.36726711]
[1746888397465,0.94973428,103650.0,103640.0,0.26940861]
[1746888397867,0.78343119,103650.0,103640.0,0.26940861]
[1746888398068,0.94973428,103650.0,103640.0,0.26940861]
[1746888398362,1.11573428,103650.0,103640.0,0.26940861]
[1746888398773,0.7831281,103650.0,103640.0,0.2548467]
[1746888398965,1.11573428,103650.0,103640.0,0.2548467]
[1746888399163,1.11573428,103650.0,103640.0,0.2588467]
[1746888399364,0.7831281,103650.0,103640.0,0.2628467]
[1746888399564,0.94943119,103650.0,103640.0,0.2949467]
[1746888401169,0.7831281,103650.0,103640.0,0.2949467]
[1746888401370,0.94943119,103650.0,103640.0,0.2949467]
[1746888402267,0.7831281,103650.0,103640.0,0.2909467]
[1746888402567,0.95043119,103650.0,103640.0,0.2909467]
[1746888403769,0.7841281,103650.0,103640.0,0.2909467]
[1746888403973,0.95043119,103650.0,103640.0,0.2869467]
[1746888404181,0.94943119,103650.0,103640.0,0.2869467]
[1746888405175,0.7831281,103650.0,103640.0,0.2869467]
[1746888405476,0.94943119,103650.0,103640.0,0.2869467]
[1746888406078,0.98153119,103650.0,103640.0,0.3189467]
[1746888406274,0.8152281,103650.0,103640.0,0.3189467]
[1746888406469,0.98153119,103650.0,103640.0,0.3189467]
[1746888407378,0.8152281,103650.0,103640.0,0.3189467]
[1746888407577,0.98153119,103650.0,103640.0,0.3189467]
[1746888408174,0.8152281,103650.0,103640.0,0.3189467]
[1746888408583,0.98153119,103650.0,103640.0,0.3189467]
[1746888415987,0.8152281,103650.0,103640.0,0.3189467]
[1746888416184,0.98153119,103650.0,103640.0,0.3189467]
[1746888417284,0.62073119,103650.0,103640.0,0.3189467]
[1746888417690,0.98153119,103650.0,103640.0,0.3189467]
[1746888418889,0.8152281,103650.0,103640.0,0.3189467]
[1746888419077,0.98153119,103650.0,103640.0,0.3189467]
[1746888420887,0.98353119,103650.0,103640.0,0.3189467]
[1746888421587,0.98153119,103650.0,103640.0,0.3189467]
[1746888422288,0.8152281,103650.0,103640.0,0.3189467]
[1746888422587,0.98153119,103650.0,103640.0,0.3189467]
[1746888422993,0.8152281,103650.0,103640.0,0.3189467]
[1746888423289,0.98353119,103650.0,103640.0,0.3189467]
[1746888424390,0.98553119,103650.0,103640.0,0.3189467]
[1746888424688,0.8172281,103650.0,103640.0,0.3189467]
[1746888424892,0.98353119,103650.0,103640.0,0.3189467]
[1746888426086,0.98553119,103650.0,103640.0,0.3189467]
[1746888426388,0.98353119,103650.0,103640.0,0.3189467]
[1746888426890,0.98153119,103650.0,103640.0,0.3189467]
[1746888427287,0.8152281,103650.0,103640.0,0.3189467]
[1746888427488,0.98153119,103650.0,103640.0,0.3189467]
[1746888427788,0.92438073,103650.0,103640.0,0.3189467]
[1746888429693,1.07380204,103650.0,103640.0,0.3189467]
[1746888429990,1.07580204,103650.0,103640.0,0.3189467]
[1746888430383,0.93254941,103650.0,103640.0,0.3189467]
[1746888430581,1.03970204,103650.0,103640.0,0.3189467]
[1746888430982,0.93054941,103650.0,103640.0,0.3189467]
[1746888431693,1.04170204,103650.0,103640.0,0.3189467]
[1746888432592,1.04370204,103650.0,103640.0,0.3189467]
[1746888433193,1.04170204,103650.0,103640.0,0.3189467]
[1746888433386,1.03970204,103650.0,103640.0,0.3189467]
[1746888433690,1.09687207,103650.0,103640.0,0.3189467]
[1746888434592,1.12867207,103650.0,103640.0,0.3189467]
[1746888434982,0.96234941,103650.0,103640.0,0.3189467]
[1746888435187,1.12867207,103650.0,103640.0,0.3189467]
[1746888435590,0.96234941,103650.0,103640.0,0.3189467]
[1746888435987,1.12867207,103650.0,103640.0,0.3189467]
[1746888436291,1.13267207,103650.0,103640.0,0.3189467]
[1746888436792,0.96434941,103650.0,103640.0,0.3189467]
[1746888436988,1.12867207,103650.0,103640.0,0.3189467]
[1746888438605,0.96234941,103650.0,103640.0,0.3189467]
[1746888438789,1.12867207,103650.0,103640.0,0.3189467]
[1746888440299,1.13067207,103650.0,103640.0,0.3189467]
[1746888440596,1.13067207,103650.0,103640.0,0.126]
[1746888440894,1.38131063,103650.0,103620.0,0.05]
[1746888441100,1.24721062,103630.0,103620.0,0.03]
[1746888441295,1.24721062,103630.0,103610.0,0.06364691]
[1746888441296,0.1929839,103620.0,103610.0,0.06364691]
[1746888441485,0.1929839,103620.0,103610.0,0.03234691]
[1746888441486,1.83896922,103620.0,103610.0,0.03234691]
[1746888441687,0.1930025,103610.0,103600.0,0.21023271]
[1746888441888,0.6173025,103610.0,103600.0,0.25273271]
[1746888442099,0.94962516,103610.0,103600.0,0.25273271]
[1746888442299,0.94962516,103610.0,103600.0,0.19023271]
[1746888442600,0.94962516,103610.0,103600.0,0.18023271]
[1746888442898,0.95950757,103610.0,103600.0,0.18023271]
[1746888443285,0.97394974,103610.0,103600.0,0.18023271]
[1746888443491,0.80762708,103610.0,103600.0,0.18523271]
[1746888443695,0.97394974,103610.0,103600.0,0.18523271]
[1746888443896,0.97394974,103610.0,103600.0,0.16732418]
[1746888444095,1.07046974,103610.0,103590.0,0.27950494]
[1746888444298,1.66446652,103600.0,103590.0,0.20093467]
[1746888444597,1.3318212,103600.0,103590.0,0.20093467]
[1746888444801,1.59467186,103600.0,103590.0,0.20093467]
[1746888445002,1.76099452,103600.0,103590.0,0.20093467]
[1746888445202,1.92699452,103600.0,103590.0,0.20093467]
[1746888446295,1.24549452,103600.0,103590.0,0.20093467]
[1746888446493,1.24549452,103600.0,103590.0,0.00595772]
[1746888446797,0.1930398,103590.0,103580.0,0.0325]
[1746888447105,1.29688512,103590.0,103580.0,0.0325]
[1746888447903,1.29688512,103590.0,103580.0,0.0345]
[1746888448802,0.1930584,103580.0,103570.0,0.0327]
[1746888448995,0.78328106,103580.0,103570.0,0.0327]
[1746888449202,0.78328106,103580.0,103560.0,0.03505887]
[1746888449203,0.1930771,103570.0,103560.0,0.03505887]
[1746888449501,0.78329976,103570.0,103560.0,0.07715887]
[1746888450190,0.94929976,103570.0,103560.0,0.27025457]
[1746888450699,0.94929976,103570.0,103560.0,0.27325457]
[1746888450903,0.94929976,103570.0,103560.0,0.08015887]
[1746888451095,0.94929976,103570.0,103560.0,0.27325457]
[1746888452202,0.94929976,103570.0,103560.0,0.11275887]
[1746888452401,0.7829771,103570.0,103560.0,0.11275887]
[1746888452607,0.94929976,103570.0,103560.0,0.11575887]
[1746888453100,0.94929976,103570.0,103560.0,0.30885457]
[1746888454407,0.7829771,103570.0,103560.0,0.30885457]
[1746888454602,0.94929976,103570.0,103560.0,0.30885457]
[1746888456407,0.94929976,103570.0,103560.0,0.32372188]
[1746888457006,0.94929976,103570.0,103560.0,0.32371893]
[1746888458104,0.7514771,103570.0,103560.0,0.32371893]
[1746888458316,0.3590771,103570.0,103560.0,0.32371893]
[1746888458510,0.3590771,103570.0,103560.0,0.34371893]
[1746888458806,0.52539976,103570.0,103560.0,0.34371893]
[1746888459010,0.55809976,103570.0,103560.0,0.34371893]
[1746888461704,0.3590771,103570.0,103560.0,0.34371893]
[1746888461901,0.166,103570.0,103560.0,1.1273993]
[1746888462207,0.3378588,103580.0,103570.0,0.1930771]
[1746888462408,0.3378588,103580.0,103570.0,0.2871771]
[1746888462609,0.3378588,103580.0,103570.0,0.30204146]
[1746888462808,0.50418146,103580.0,103570.0,0.39859917]
[1746888463105,1.03098146,103580.0,103570.0,0.39859917]
[1746888463306,0.67018146,103580.0,103570.0,0.39859917]
[1746888463606,1.03098146,103580.0,103570.0,0.30204146]
[1746888463909,1.06258146,103580.0,103570.0,0.30304146]
[1746888464613,1.06258146,103580.0,103570.0,0.30504146]
[1746888465400,0.8962588,103580.0,103570.0,0.30504146]
[1746888465810,0.5354588,103580.0,103570.0,0.30504146]
[1746888466002,0.8962588,103580.0,103570.0,0.30504146]
[1746888466203,0.5354588,103580.0,103570.0,0.30504146]
[1746888467508,0.8962588,103580.0,103570.0,0.30504146]
[1746888467906,0.5354588,103580.0,103570.0,0.30504146]
[1746888468205,0.8962588,103580.0,103570.0,0.30504146]
[1746888468401,0.5354588,103580.0,103570.0,0.30504146]
[1746888469000,0.8962588,103580.0,103570.0,0.30504146]
[1746888469208,0.5354588,103580.0,103570.0,0.30504146]
[1746888469706,0.8962588,103580.0,103570.0,0.30504146]
[1746888469908,0.5354588,103580.0,103570.0,0.30504146]
[1746888470302,0.8962588,103580.0,103570.0,0.30504146]
[1746888470511,0.5354588,103580.0,103570.0,0.30504146]
[1746888471205,0.8962588,103580.0,103570.0,0.30504146]
[1746888472113,0.8962588,103580.0,103570.0,0.30487875]
[1746888472316,0.5354588,103580.0,103570.0,0.30487875]
[1746888473212,0.8962588,103580.0,103570.0,0.30492196]
[1746888475113,0.5354588,103580.0,103570.0,0.30492196]
[1746888475408,0.8962588,103580.0,103570.0,0.30492196]
[1746888475813,0.5354588,103580.0,103570.0,0.30492196]
[1746888476001,0.8962588,103580.0,103570.0,0.30492196]
[1746888478320,1.06258146,103580.0,103570.0,0.30492196]
[1746888478518,1.09488146,103580.0,103570.0,0.30492196]
[1746888479321,1.12548146,103580.0,103570.0,0.30492196]
[1746888480720,0.9591588,103580.0,103570.0,0.11184486]
[1746888481021,1.12548146,103580.0,103570.0,0.11184486]
[1746888481216,0.9591588,103580.0,103570.0,0.11184486]
[1746888481417,1.12548146,103580.0,103570.0,0.11184486]
[1746888482226,1.12548146,103580.0,103570.0,0.30492196]
[1746888483220,1.12548146,103580.0,103570.0,0.30485289]
[1746888484129,0.9591588,103580.0,103570.0,0.30485289]
[1746888484928,0.9591588,103580.0,103570.0,0.2901771]
[1746888488329,1.12548146,103580.0,103570.0,0.2901771]
[1746888488727,0.9285588,103580.0,103570.0,0.2901771]
[1746888488927,0.8962588,103580.0,103570.0,0.2901771]
[1746888489822,0.9270588,103580.0,103570.0,0.2901771]
[1746888491330,0.4389254,103580.0,103570.0,0.55304815]
[1746888491531,0.4073254,103580.0,103570.0,0.55304815]
[1746888491932,0.4073254,103580.0,103570.0,0.38672549]
[1746888492234,0.2413254,103580.0,103570.0,0.38672549]
[1746888492530,0.2722254,103580.0,103570.0,0.38672549]
[1746888494135,0.4382254,103580.0,103570.0,0.38672549]
[1746888494735,0.54750195,103580.0,103570.0,0.38672549]
[1746888494931,1.0817785,103580.0,103570.0,0.19364839]
[1746888495132,1.0817785,103580.0,103570.0,0.033]
[1746888495736,1.02980667,103580.0,103570.0,0.033]
[1746888495936,0.8632254,103580.0,103570.0,0.033]
[1746888496237,1.02980667,103580.0,103570.0,0.033]
[1746888500640,0.8632254,103580.0,103570.0,0.033]
[1746888500827,1.02980667,103580.0,103570.0,0.0952]
[1746888503030,0.8309254,103580.0,103570.0,0.2882771]
[1746888503224,0.4701254,103580.0,103570.0,0.2882771]
[1746888503427,0.1969,103580.0,103570.0,0.59482549]
[1746888503627,0.3590584,103580.0,103570.0,0.59482549]
[1746888503827,0.3590584,103580.0,103570.0,0.58482549]
[1746888504927,0.3916584,103580.0,103570.0,0.58482549]
[1746888505436,0.3916584,103580.0,103570.0,0.94562549]
[1746888506037,0.8177584,103580.0,103570.0,0.003]
[1746888506239,0.98433967,103580.0,103570.0,0.066]
[1746888506841,0.98550643,103580.0,103570.0,0.003]
[1746888507030,0.98550643,103580.0,103570.0,0.066]
[1746888507433,0.9857431,103580.0,103570.0,0.066]
[1746888508541,0.8193985,103580.0,103570.0,0.066]
[1746888508932,0.98597977,103580.0,103570.0,0.003]
[1746888509438,0.98597977,103580.0,103570.0,1e-07]
[1746888511338,0.1930771,103570.0,103560.0,7e-08]
[1746888511544,0.1930957,103560.0,103550.0,0.0632]
[1746888511740,0.98185824,103560.0,103550.0,0.0832]
[1746888511950,0.1931144,103550.0,103540.0,0.0308]
[1746888512243,0.94729567,103550.0,103540.0,0.0324]
[1746888512438,0.95922128,103550.0,103540.0,0.0937]
[1746888512945,0.94956963,103550.0,103540.0,0.0937]
[1746888513440,0.95156963,103550.0,103540.0,0.1057]
[1746888514836,0.96131711,103550.0,103540.0,0.1057]
[1746888515447,0.96131711,103550.0,103540.0,0.012]
[1746888515653,0.193133,103540.0,103530.0,0.07046001]
[1746888515944,0.98605427,103540.0,103530.0,0.07046001]
[1746888516246,1.15205427,103540.0,103530.0,0.07046001]
[1746888516643,1.15432823,103540.0,103530.0,0.07046001]
[1746888517348,1.15432823,103540.0,103530.0,0.07546001]
[1746888517349,1.15532823,103540.0,103530.0,0.07546001]
[1746888517543,0.98874696,103540.0,103530.0,0.07546001]
[1746888517841,0.95268823,103540.0,103530.0,0.07546001]
[1746888518352,0.59188823,103540.0,103530.0,0.07546001]
[1746888518546,0.95368823,103540.0,103530.0,0.07846001]
[1746888519042,1.1222695,103540.0,103530.0,0.00796001]
[1746888519356,0.95768823,103540.0,103530.0,0.00596001]
[1746888521549,0.97227383,103540.0,103530.0,0.00596001]
[1746888521949,1.65377383,103540.0,103530.0,0.00596001]
[1746888523849,1.65401267,103540.0,103530.0,0.00596001]
[1746888524048,1.4874314,103540.0,103530.0,0.06716001]
[1746888524349,1.65401267,103540.0,103530.0,0.06716001]
[1746888524853,1.63942707,103540.0,103530.0,0.06716001]
[1746888525051,1.6401658,103540.0,103530.0,0.06716001]
[1746888525349,1.64074707,103540.0,103530.0,0.06716001]
[1746888526453,1.4741658,103540.0,103530.0,0.06716001]
[1746888526753,1.64074707,103540.0,103530.0,0.06716001]
[1746888527756,1.4741658,103540.0,103530.0,0.06716001]
[1746888527958,1.47342707,103540.0,103530.0,0.06716001]
[1746888528152,1.63994707,103540.0,103530.0,0.06716001]
[1746888528463,1.4733658,103540.0,103530.0,0.06716001]
[1746888528757,1.63994707,103540.0,103530.0,0.06716001]
[1746888529348,1.3068458,103540.0,103530.0,0.06716001]
[1746888529548,1.63950707,103540.0,103530.0,0.06716001]
[1746888529949,1.44296602,103540.0,103530.0,0.06716001]
[1746888530150,1.77524602,103540.0,103530.0,0.06716001]
[1746888530658,1.77548497,103540.0,103530.0,0.06716001]
[1746888531166,1.80548497,103540.0,103530.0,0.06716001]
[1746888534259,1.80572392,103540.0,103530.0,0.06716001]
[1746888535364,1.80596287,103540.0,103530.0,0.06716001]
[1746888537361,1.80620258,103540.0,103530.0,0.06716001]
[1746888538958,1.80320258,103540.0,103530.0,0.06616001]
[1746888539166,1.81220258,103540.0,103530.0,0.06616001]
[1746888539361,2.17300258,103540.0,103530.0,0.06616001]
[1746888540265,2.00700258,103540.0,103530.0,0.06616001]
[1746888541172,2.17300258,103540.0,103530.0,0.06616001]
[1746888542480,2.16700258,103540.0,103530.0,0.06616001]
[1746888542776,2.16700258,103540.0,103530.0,0.06516001]
[1746888543266,2.16800258,103540.0,103530.0,0.06516001]
[1746888543672,2.16429427,103540.0,103530.0,0.06516001]
[1746888543870,1.97196146,103540.0,103530.0,0.25831171]
[1746888544075,1.77280146,103540.0,103530.0,0.25831171]
[1746888544275,1.60680146,103540.0,103530.0,0.06516001]
[1746888544480,1.60980146,103540.0,103530.0,0.06516001]
[1746888545163,1.76980146,103540.0,103530.0,0.06516001]
[1746888545372,1.77380146,103540.0,103530.0,0.06516001]
[1746888546779,1.76985427,103540.0,103530.0,0.06516001]
[1746888546980,1.77404034,103540.0,103530.0,0.06516001]
[1746888547875,1.77427922,103540.0,103530.0,0.06516001]
[1746888548379,1.76985427,103540.0,103530.0,0.06516001]
[1746888548572,1.7745181,103540.0,103530.0,0.06516001]
[1746888549475,2.1353181,103540.0,103530.0,0.06516001]
[1746888549683,2.1674181,103540.0,103530.0,0.06516001]
[1746888550880,2.16275427,103540.0,103530.0,0.06516001]
[1746888551084,2.1676577,103540.0,103530.0,0.06516001]
[1746888551781,2.00120853,103540.0,103530.0,0.06516001]
[1746888551966,2.1677898,103540.0,103530.0,0.06516001]
[1746888554183,2.0017898,103540.0,103530.0,0.06516001]
[1746888554879,1.67356853,103540.0,103530.0,0.06516001]
[1746888555182,1.8045098,103540.0,103530.0,0.06516001]
[1746888555383,1.8044298,103540.0,103530.0,0.06516001]
[1746888559388,1.8046706,103540.0,103530.0,0.06516001]
[1746888561092,1.8006706,103540.0,103530.0,0.06516001]
[1746888561283,1.8069114,103540.0,103530.0,0.06516001]
[1746888561491,1.8079114,103540.0,103530.0,0.06516001]
[1746888561890,1.8081522,103540.0,103530.0,0.06516001]
[1746888562991,1.8081522,103540.0,103530.0,0.25831171]
[1746888563191,1.8081522,103540.0,103530.0,0.06516001]
[1746888563394,1.25750025,103540.0,103530.0,0.25831171]
[1746888563586,1.41843325,103540.0,103530.0,0.3648974]
[1746888563783,1.22530025,103540.0,103530.0,0.47424978]
[1746888563990,1.16698563,103540.0,103530.0,0.3648974]
[1746888564186,1.00098563,103540.0,103530.0,0.3648974]
[1746888564496,0.69350025,103540.0,103530.0,0.3648974]
[1746888564688,0.88763325,103540.0,103530.0,0.3648974]
[1746888565294,0.881633,103540.0,103530.0,0.3648974]
[1746888565495,0.88787557,103540.0,103530.0,0.3648974]
[1746888566395,0.88787557,103540.0,103530.0,0.7256974]
[1746888566592,0.88387557,103540.0,103530.0,0.7256974]
[1746888566791,0.88787557,103540.0,103530.0,0.7256974]
[1746888566994,0.20637557,103540.0,103530.0,0.7256974]
[1746888567496,0.01324257,103540.0,103530.0,1.18234783]
[1746888567686,0.01024257,103540.0,103530.0,1.18234783]
[1746888567888,0.00924257,103540.0,103530.0,1.18234783]
[1746888568198,0.00924257,103540.0,103530.0,1.34834783]
[1746888568199,0.01324257,103540.0,103530.0,1.34834783]
[1746888568391,0.01124257,103540.0,103530.0,1.34834783]
[1746888569498,0.001,103540.0,103530.0,1.84961183]
[1746888569691,0.6350847,103560.0,103550.0,0.1911144]
[1746888569894,0.6350847,103560.0,103550.0,0.2111144]
[1746888570090,0.6350847,103560.0,103550.0,0.2757144]
[1746888570292,0.6350847,103560.0,103550.0,0.37230009]
[1746888570594,0.6350847,103560.0,103550.0,0.37030009]
[1746888571391,0.6390847,103560.0,103550.0,0.37030009]
[1746888572193,0.6420847,103560.0,103550.0,0.37030009]
[1746888572390,0.6420847,103560.0,103550.0,0.37976884]
[1746888572900,0.6420847,103560.0,103550.0,0.37030009]
[1746888573403,0.80873513,103560.0,103550.0,0.37030009]
[1746888574101,0.97473513,103560.0,103550.0,0.37030009]
[1746888574514,1.03793513,103560.0,103550.0,0.37030009]
[1746888574999,1.03915378,103560.0,103550.0,0.37030009]
[1746888576605,1.03926235,103560.0,103550.0,0.37030009]
[1746888580612,0.87261192,103560.0,103550.0,0.37030009]
[1746888581010,1.03926235,103560.0,103550.0,0.37030009]
[1746888582009,1.03793513,103560.0,103550.0,0.37030009]
[1746888582210,1.03950684,103560.0,103550.0,0.37030009]
[1746888582710,0.87285641,103560.0,103550.0,0.37030009]
[1746888583012,1.03950684,103560.0,103550.0,0.37030009]
[1746888583214,1.03975133,103560.0,103550.0,0.37030009]
[1746888584315,1.03999525,103560.0,103550.0,0.37030009]
[1746888584815,1.04023917,103560.0,103550.0,0.37030009]
[1746888585318,1.2068896,103560.0,103550.0,0.02]
[1746888585617,0.1931144,103550.0,103540.0,0.4920603]
[1746888585919,0.3674702,103550.0,103540.0,0.62862734]
[1746888586115,0.5334702,103550.0,103540.0,0.62862734]
[1746888586304,0.53371412,103550.0,103540.0,0.62862734]
[1746888587008,0.53371412,103550.0,103540.0,0.62962734]
[1746888587408,0.5338206,103550.0,103540.0,0.62962734]
[1746888587608,0.5348206,103550.0,103540.0,0.63062734]
[1746888593121,0.53506531,103550.0,103540.0,0.63062734]
[1746888593623,0.53531002,103550.0,103540.0,0.63062734]
[1746888594017,0.53431002,103550.0,103540.0,0.62962734]
[1746888594220,0.53731002,103550.0,103540.0,0.63062734]
[1746888594721,0.53731002,103550.0,103540.0,0.62962734]
[1746888594923,0.53831002,103550.0,103540.0,0.62962734]
[1746888595219,0.53855473,103550.0,103540.0,0.62962734]
[1746888596123,0.53879944,103550.0,103540.0,0.62962734]
[1746888597132,0.53904404,103550.0,103540.0,0.62962734]
[1746888597821,0.50844782,103550.0,103540.0,0.62962734]
[1746888598020,0.17398166,103550.0,103540.0,0.62962734]
[1746888598220,0.17398166,103550.0,103540.0,1.73570686]
[1746888598423,0.6815,103570.0,103560.0,0.1930957]
[1746888598623,0.032,103570.0,103560.0,0.6038957]
[1746888598817,0.2250771,103570.0,103560.0,0.8503557]
[1746888599123,0.47902656,103580.0,103570.0,0.1930771]
[1746888599427,0.51102656,103580.0,103570.0,0.2656771]
[1746888599725,0.56821059,103580.0,103570.0,0.36223481]
[1746888600122,0.73421059,103580.0,103570.0,0.36223481]
[1746888600326,0.73421059,103580.0,103570.0,0.35723481]
[1746888600731,0.70241059,103580.0,103570.0,0.35223481]
[1746888600921,0.70941059,103580.0,103570.0,0.35323481]
[1746888601524,0.70741059,103580.0,103570.0,0.35323481]
[1746888601726,0.71241059,103580.0,103570.0,0.35423481]
[1746888601925,0.71241059,103580.0,103570.0,0.36870566]
[1746888602524,0.74411059,103580.0,103570.0,0.36870566]
[1746888603626,0.5775748,103580.0,103570.0,0.36870566]
[1746888603827,0.74411059,103580.0,103570.0,0.36870566]
[1746888607027,0.74532434,103580.0,103570.0,0.36870566]
[1746888608629,0.74543763,103580.0,103570.0,0.36870566]
[1746888610827,0.54720184,103580.0,103570.0,0.36870566]
[1746888612323,0.54720184,103580.0,103570.0,0.37815934]
[1746888612925,0.71373763,103580.0,103570.0,0.36870566]
[1746888613126,0.74443763,103580.0,103570.0,0.36870566]
[1746888614331,0.74468167,103580.0,103570.0,0.36870566]
[1746888614533,0.77478167,103580.0,103570.0,0.36870566]
[1746888614831,0.77502571,103580.0,103570.0,0.36870566]
[1746888616435,0.77526975,103580.0,103570.0,0.36870566]
[1746888617423,0.77321059,103580.0,103570.0,0.36870566]
[1746888617624,0.77551196,103580.0,103570.0,0.36870566]
[1746888618638,0.77575417,103580.0,103570.0,0.36870566]
[1746888619035,0.77575417,103580.0,103570.0,0.27214795]
[1746888619241,1.13655417,103580.0,103570.0,0.012]
[1746888619538,1.13655417,103580.0,103570.0,0.002]
[1746888619539,1.13401059,103580.0,103570.0,0.002]
[1746888619740,1.13666467,103580.0,103570.0,0.002]
[1746888621742,1.1887619,103580.0,103570.0,0.002]
[1746888625342,1.18610782,103580.0,103570.0,0.002]
[1746888625543,1.189004,103580.0,103570.0,0.002]
[1746888626446,1.1892461,103580.0,103570.0,0.1950771]
[1746888627242,1.1892461,103580.0,103570.0,0.2281771]
[1746888627449,1.1894882,103580.0,103570.0,0.2281771]
[1746888627942,1.1894882,103580.0,103570.0,0.0351]
[1746888628145,1.1894882,103580.0,103570.0,0.0668]
[1746888628340,1.1894882,103580.0,103570.0,0.002]
[1746888628541,1.1897303,103580.0,103570.0,0.002]
[1746888629044,1.1899724,103580.0,103570.0,0.002]
[1746888630043,0.97133938,103580.0,103570.0,0.002]
[1746888630240,1.1899724,103580.0,103570.0,0.002]
[1746888630544,1.18610782,103580.0,103570.0,0.002]
[1746888630743,1.19008894,103580.0,103570.0,0.002]
[1746888633041,1.19008894,103580.0,103570.0,0.0662]
[1746888636138,1.19033082,103580.0,103570.0,0.0662]
[1746888637045,1.1905727,103580.0,103570.0,0.0662]
[1746888638450,1.19081447,103580.0,103570.0,0.0662]
[1746888639552,1.19105624,103580.0,103570.0,0.0662]
[1746888640549,1.19129801,103580.0,103570.0,0.0662]
[1746888641751,1.19141598,103580.0,103570.0,0.0662]
[1746888647052,1.19165754,103580.0,103570.0,0.0662]
[1746888648453,1.1918991,103580.0,103570.0,0.0662]
[1746888649051,0.1930771,103570.0,103560.0,0.0317]
[1746888649353,0.98462296,103570.0,103560.0,0.0625]
[1746888649662,0.1930957,103560.0,103550.0,0.0308]
[1746888649853,0.1930957,103560.0,103550.0,0.1027]
[1746888649854,0.86972872,103560.0,103550.0,0.1027]
[1746888650346,1.03572872,103560.0,103550.0,0.1027]
[1746888650557,1.04200312,103560.0,103550.0,0.1027]
[1746888650944,1.00904468,103560.0,103550.0,0.1027]
[1746888651355,1.00904468,103560.0,103550.0,0.1037]
[1746888651851,1.00904468,103560.0,103550.0,0.1047]
[1746888652051,0.97694468,103560.0,103550.0,0.1047]
[1746888652444,0.97706392,103560.0,103550.0,0.1047]
[1746888655060,0.86774741,103560.0,103550.0,0.1047]
[1746888655554,0.97706392,103560.0,103550.0,0.1047]
[1746888655954,0.86774741,103560.0,103550.0,0.1047]
[1746888656253,0.97706392,103560.0,103550.0,0.1047]
[1746888656453,0.7584309,103560.0,103550.0,0.1047]
[1746888656650,0.97706392,103560.0,103550.0,0.1047]
[1746888658056,0.86798875,103560.0,103550.0,0.1047]